Workbook

Sheet Summary
A3: Paragon Secured Finance (No.1) PLC
A5: Information as at the Principal Determination Date | B5: 2005-04-29 | C5: 2005-07-29 | D5: 2005-10-31 | E5: 2006-01-31 | F5: 2006-04-28 | G5: 2006-07-31 | H5: 2006-10-31 | I5: 2007-01-31 | J5: 2007-04-30 | K5: 2007-07-31 | L5: 2007-10-31 | M5: 2008-01-31 | N5: 2008-04-30 | O5: 2008-07-31 | P5: 2008-10-31 | Q5: 2009-01-30 | R5: 2009-04-30 | S5: 2009-07-31 | T5: 2009-10-30 | U5: 2010-01-29 | V5: 2010-04-30 | W5: 2010-07-30 | X5: 2010-10-29 | Y5: 2011-01-31 | Z5: 2011-04-28 | AA5: 2011-07-29 | AB5: 2011-10-31 | AC5: 2012-01-31 | AD5: 2012-04-30 | AE5: 2012-07-31 | AF5: 2012-10-31 | AG5: 2013-01-31 | AH5: 2013-04-30 | AI5: 2013-07-31 | AJ5: 2013-10-31 | AK5: 2014-01-31 | AL5: 2014-04-30 | AM5: 2014-07-31 | AN5: 2014-10-31 | AO5: 2015-01-30 | AP5: 2015-04-30 | AQ5: 2015-07-31 | AR5: 2015-10-30 | AS5: 2016-01-29 | AT5: 2016-04-29 | AU5: 2016-07-29 | AV5: 2016-10-31 | AW5: 2017-01-31 | AX5: 2017-04-28 | AY5: 2017-07-31 | AZ5: 2017-10-31 | BA5: 2018-01-31 | BB5: 2018-04-30 | BC5: 2018-07-31 | BD5: 2018-10-31
A6: Mortgage Asset Balance and Outstanding Accrued Arrears | B6: 206985 | C6: 269657 | D6: 261495 | E6: 262508 | F6: 262921 | G6: 280522 | H6: 286550 | I6: 262075 | J6: 260967 | K6: 247627 | L6: 233850 | M6: 226770 | N6: 230614 | O6: 222113 | P6: 215659 | Q6: 207435 | R6: 199935 | S6: 191472 | T6: 183422 | U6: 176082 | V6: 169609 | W6: 162109 | X6: 155549 | Y6: 149387 | Z6: 143864 | AA6: 137995 | AB6: 131625 | AC6: 126086 | AD6: 120643 | AE6: 115977 | AF6: 110897 | AG6: 106452 | AH6: 102377 | AI6: 98449 | AJ6: 94335 | AK6: 89721 | AL6: 85628 | AM6: 80984 | AN6: 77052.13735 | AO6: 72855.00321 | AP6: 69595.60597 | AQ6: 66521.26946 | AR6: 63414.93833 | AS6: 60097.44995 | AT6: 57417.90417 | AU6: 54362.65409 | AV6: 51709 | AW6: 49063.59293 | AX6: 46334.81099 | AY6: 43730.2252 | AZ6: 41212.43476 | BA6: 38385.93216 | BB6: 36336.33724 | BC6: 34136.62206 | BD6: 0
A7: Available Principal Cash to purchase new Assets | B7: 93015 | C7: 30343 | D7: 38505 | E7: 37492 | F7: 37079 | G7: 19478 | H7: 13450 | I7: 37925 | J7: 39033 | K7: 52373 | L7: 66150 | M7: 73230 | N7: 69386 | O7: 77887 | P7: 0 | Q7: 0 | R7: 0 | S7: 0 | T7: 0 | U7: 0 | V7: 0 | W7: 0 | X7: 0 | Y7: 0 | Z7: 0 | AA7: 0 | AB7: 0 | AC7: 0 | AD7: 0 | AE7: 0 | AF7: 0 | AG7: 0 | AH7: 0 | AI7: 0 | AJ7: 0 | AK7: 0 | AL7: 0 | AM7: 0 | AN7: 0 | AO7: 0 | AP7: 0 | AQ7: 0 | AR7: 0 | AS7: 0 | AT7: 0 | AU7: 0 | AV7: 0 | AW7: 0 | AX7: 0 | AY7: 0 | AZ7: 0 | BA7: 0 | BB7: 0 | BC7: 0 | BD7: 0
A8: Total Assets | B8: =SUM(B6:B7) -> 300000 | C8: 300000 | D8: 300000 | E8: 300000 | F8: 300000 | G8: 300000 | H8: 300000 | I8: 300000 | J8: 300000 | K8: 300000 | L8: 300000 | M8: 300000 | N8: 300000 | O8: 300000 | P8: =SUM(P6:P7) -> 215659 | Q8: 207435 | R8: 199935 | S8: 191472 | T8: 183422 | U8: 176082 | V8: 169609 | W8: 162109 | X8: 155549 | Y8: 149387 | Z8: 143864 | AA8: 137995 | AB8: 131625 | AC8: =SUM(AC6:AC7) -> 126086 | AD8: 120643 | AE8: 115977 | AF8: 110897 | AG8: 106452 | AH8: 102377 | AI8: =SUM(AI6:AI7) -> 98449 | AJ8: 94335 | AK8: 89721 | AL8: 85628 | AM8: 80984 | AN8: 77052.13735 | AO8: =SUM(AO6:AO7) -> 72855.00321 | AP8: 69595.60597 | AQ8: =SUM(AQ6:AQ7) -> 66521.26946 | AR8: 63414.93833 | AS8: =SUM(AS6:AS7) -> 60097.44995 | AT8: 57417.90417 | AU8: =SUM(AU6:AU7) -> 54362.65409 | AV8: 51709 | AW8: =SUM(AW6:AW7) -> 49063.59293 | AX8: 46334.81099 | AY8: =SUM(AY6:AY7) -> 43730.2252 | AZ8: 41212.43476 | BA8: =SUM(BA6:BA7) -> 38385.93216 | BB8: 36336.33724 | BC8: =SUM(BC6:BC7) -> 34136.62206 | BD8: 0
A9: Total Notes | B9: =SUM(B10:B12) -> 300000 | C9: 300000 | D9: 300000 | E9: 300000 | F9: 300000 | G9: 300000 | H9: =SUM(H10:H12) -> 300000 | I9: 300000 | J9: 300000 | K9: 300000 | L9: 300000 | M9: 300000 | N9: =SUM(N10:N12) -> 300000 | O9: 300000 | P9: 215659 | Q9: 207435 | R9: 199935 | S9: 191472 | T9: =SUM(T10:T12) -> 183422 | U9: 176082 | V9: 169609 | W9: 162109 | X9: 155549 | Y9: 149387 | Z9: =SUM(Z10:Z12)-1 -> 143864 | AA9: =SUM(AA10:AA12)+1 -> 137995 | AB9: =SUM(AB10:AB12) -> 131625 | AC9: =SUM(AC10:AC12) -> 126086 | AD9: =SUM(AD10:AD12) -> 120643 | AE9: =SUM(AE10:AE12) -> 115977 | AF9: =SUM(AF10:AF12)-1 -> 110897 | AG9: =SUM(AG10:AG12) -> 106452 | AH9: =SUM(AH10:AH12) -> 102377 | AI9: =SUM(AI10:AI12)-1 -> 98449 | AJ9: =SUM(AJ10:AJ12)-1 -> 94335 | AK9: =SUM(AK10:AK12)-1 -> 89721 | AL9: =SUM(AL10:AL12) -> 85628 | AM9: =SUM(AM10:AM12) -> 80984 | AN9: =SUM(AN10:AN12) -> 77052 | AO9: =SUM(AO10:AO12) -> 72855 | AP9: =SUM(AP10:AP12)+1 -> 69596 | AQ9: =SUM(AQ10:AQ12) -> 66521 | AR9: =SUM(AR10:AR12)-1 -> 63415 | AS9: =SUM(AS10:AS12)-1 -> 60097 | AT9: =SUM(AT10:AT12) -> 57418 | AU9: 54363 | AV9: 51709 | AW9: 49064 | AX9: 46335 | AY9: =SUM(AY10:AY12) -> 43730 | AZ9: 41212 | BA9: =SUM(BA10:BA12)+1 -> 38386 | BB9: =SUM(BB10:BB12)-1 -> 36336 | BC9: =SUM(BC10:BC12) -> 34137 | BD9: =SUM(BD10:BD12) -> 0
A10: Class A Notes | B10: 231000 | C10: 231000 | D10: 231000 | E10: 231000 | F10: 231000 | G10: 231000 | H10: 231000 | I10: 231000 | J10: 231000 | K10: 231000 | L10: 231000 | M10: 231000 | N10: 231000 | O10: 231000 | P10: 146659 | Q10: 138435 | R10: 130935 | S10: 122472 | T10: 114422 | U10: 107082 | V10: 100609 | W10: 93109 | X10: 86549 | Y10: 80387 | Z10: 77543 | AA10: 74379 | AB10: 70946 | AC10: 67960 | AD10: 65027 | AE10: 62512 | AF10: 59774 | AG10: 55328 | AH10: 51253 | AI10: 47326 | AJ10: 43212 | AK10: 38598 | AL10: 34504 | AM10: 34504 | AN10: 34504 | AO10: 34504 | AP10: 34504 | AQ10: 34504 | AR10: 34181 | AS10: 30863 | AT10: 30863 | AU10: 29302 | AV10: 27871 | AW10: 26445 | AX10: 24975 | AY10: 22370 | AZ10: 22214 | BA10: 20690 | BB10: 19586 | BC10: 18400 | BD10: 0
A11: Class B Notes | B11: 42000 | C11: 42000 | D11: 42000 | E11: 42000 | F11: 42000 | G11: 42000 | H11: 42000 | I11: 42000 | J11: 42000 | K11: 42000 | L11: 42000 | M11: 42000 | N11: 42000 | O11: 42000 | P11: 42000 | Q11: 42000 | R11: 42000 | S11: 42000 | T11: 42000 | U11: 42000 | V11: 42000 | W11: 42000 | X11: 42000 | Y11: 42000 | Z11: 40370 | AA11: 38722 | AB11: 36935 | AC11: 35381 | AD11: 33853 | AE11: 32544 | AF11: 31119 | AG11: 31119 | AH11: 31119 | AI11: 31119 | AJ11: 31119 | AK11: 31119 | AL11: 31119 | AM11: 28292 | AN11: 25899 | AO11: 23344 | AP11: 21360 | AQ11: 19489 | AR11: 17795 | AS11: 17795 | AT11: 16164 | AU11: 15255 | AV11: 14510 | AW11: 13768 | AX11: 13002 | AY11: 13002 | AZ11: 11564 | BA11: 10771 | BB11: 10196 | BC11: 9579 | BD11: 0
A12: Class C Notes | B12: 27000 | C12: 27000 | D12: 27000 | E12: 27000 | F12: 27000 | G12: 27000 | H12: 27000 | I12: 27000 | J12: 27000 | K12: 27000 | L12: 27000 | M12: 27000 | N12: 27000 | O12: 27000 | P12: 27000 | Q12: 27000 | R12: 27000 | S12: 27000 | T12: 27000 | U12: 27000 | V12: 27000 | W12: 27000 | X12: 27000 | Y12: 27000 | Z12: 25952 | AA12: 24893 | AB12: 23744 | AC12: 22745 | AD12: 21763 | AE12: 20921 | AF12: 20005 | AG12: 20005 | AH12: 20005 | AI12: 20005 | AJ12: 20005 | AK12: 20005 | AL12: 20005 | AM12: 18188 | AN12: 16649 | AO12: 15007 | AP12: 13731 | AQ12: 12528 | AR12: 11440 | AS12: 11440 | AT12: 10391 | AU12: 9806 | AV12: 9328 | AW12: 8851 | AX12: 8358 | AY12: 8358 | AZ12: 7434 | BA12: 6924 | BB12: 6555 | BC12: 6158 | BD12: 0
A13: Class B and C Notes as a % of the Total Notes | B13: =SUM(B11:B12)/B9 -> 0.23 | C13: 0.23 | D13: 0.23 | E13: 0.23 | F13: 0.23 | G13: 0.23 | H13: 0.23 | I13: 0.23 | J13: 0.23 | K13: 0.23 | L13: 0.23 | M13: 0.23 | N13: 0.23 | O13: 0.23 | P13: 0.31994955 | Q13: 0.3326343192 | R13: 0.3451121615 | S13: 0.3603660065 | T13: 0.3761817012 | U13: 0.3918628821 | V13: 0.4068180344 | W13: 0.4256395388 | X13: 0.4435901227 | Y13: 0.4618875806 | Z13: 0.4610048379 | AA13: 0.4609949636 | AB13: 0.4609990503 | AC13: =SUM(AC11:AC12)/AC9 -> 0.4610028076 | AD13: 0.4609964938 | AE13: 0.4609965769 | AF13: 0.4610043554 | AG13: 0.4802540112 | AH13: 0.4993699757 | AI13: =SUM(AI11:AI12)/AI9 -> 0.5192942539 | AJ13: 0.5419409551 | AK13: 0.5698108581 | AL13: 0.5970476947 | AM13: 0.5739405315 | AN13: 0.5521985153 | AO13: =SUM(AO11:AO12)/AO9 -> 0.5264017569 | AP13: 0.5042100121 | AQ13: =SUM(AQ11:AQ12)/AQ9 -> 0.481306655 | AR13: 0.4610108019 | AS13: =SUM(AS11:AS12)/AS9 -> 0.4864635506 | AT13: 0.4624856317 | AU13: =SUM(AU11:AU12)/AU9 -> 0.4609936906 | AV13: 0.4610029202 | AW13: =SUM(AW11:AW12)/AW9 -> 0.4610101092 | AX13: 0.4609906118 | AY13: =SUM(AY11:AY12)/AY9 -> 0.4884518637 | AZ13: =SUM(AZ11:AZ12)/AZ9 -> 0.4609822382 | BA13: =SUM(BA11:BA12)/BA9 -> 0.4609753556 | BB13: =SUM(BB11:BB12)/BB9 -> 0.4610028622 | BC13: =SUM(BC11:BC12)/BC9 -> 0.4609954009 | BD13: 0
A14: Lifetime Redemption Rate | B14: 0.3023 | C14: 0.3757 | D14: 0.3881 | E14: 0.3885 | F14: 0.3867 | G14: 0.3906 | H14: 0.3907 | I14: 0.3886 | J14: 0.3915 | K14: 0.3949 | L14: 0.3954 | M14: 0.3936 | N14: 0.3875 | O14: 0.3785 | P14: 0.3675 | Q14: 0.3546 | R14: 0.3429 | S14: 0.3324 | T14: 0.323 | U14: 0.3144 | V14: 0.306 | W14: 0.299 | X14: 0.2925 | Y14: 0.2864 | Z14: 0.2804 | AA14: 0.275 | AB14: 0.2707 | AC14: 0.266 | AD14: 0.2618 | AE14: 0.2575 | AF14: 0.2539 | AG14: 0.2503 | AH14: 0.2467 | AI14: 0.2438 | AJ14: 0.241 | AK14: 0.2386 | AL14: 0.2361 | AM14: 0.2346 | AN14: 0.2332 | AO14: 0.2318 | AP14: 0.2302 | AQ14: 0.229 | AR14: 0.2277 | AS14: 0.2268 | AT14: 0.2255 | AU14: 0.225 | AV14: 0.224 | AW14: 0.2233 | AX14: 0.2231 | AY14: 0.223 | AZ14: 0.223 | BA14: 0.2236 | BB14: 0.2235 | BC14: 0.2237 | BD14: 1
A15: Quarterly Redemption Rate | B15: 0.1394 | C15: 0.1357 | D15: 0.1267 | E15: 0.1162 | F15: 0.112 | G15: 0.1256 | H15: 0.1169 | I15: 0.1104 | J15: 0.1258 | K15: 0.1297 | L15: 0.1201 | M15: 0.1109 | N15: 0.0874 | O15: 0.0677 | P15: 0.0489 | Q15: 0.031 | R15: 0.0301 | S15: 0.0313 | T15: 0.0323 | U15: 0.032 | V15: 0.0284 | W15: 0.0351 | X15: 0.034 | Y15: 0.0337 | Z15: 0.0302 | AA15: 0.0325 | AB15: 0.0389 | AC15: 0.0328 | AD15: 0.0347 | AE15: 0.031 | AF15: 0.035 | AG15: 0.0337 | AH15: 0.032 | AI15: 0.036 | AJ15: 0.0374 | AK15: 0.0382 | AL15: 0.0374 | AM15: 0.047 | AN15: 0.0476 | AO15: 0.0473 | AP15: 0.0431 | AQ15: 0.047 | AR15: 0.0457 | AS15: 0.0503 | AT15: 0.0453 | AU15: 0.0539 | AV15: 0.0477 | AW15: 0.0504 | AX15: 0.0589 | AY15: 0.0601 | AZ15: 0.0607 | BA15: 0.0698 | BB15: 0.0602 | BC15: 0.0656 | BD15: 1
A16: Further Advances released in the quarter | B16: 497 | C16: 142 | D16: 555 | E16: 384 | F16: 446 | G16: 462 | H16: 483 | I16: 694 | J16: 512 | K16: 657 | L16: 576 | M16: 498 | N16: 377 | O16: 310 | P16: 260 | Q16: 197 | R16: 126 | S16: 120 | T16: 40 | U16: 111 | V16: 40 | W16: 56 | X16: 75 | Y16: 18 | Z16: 0 | AA16: 0 | AB16: 0 | AC16: 0 | AD16: 0 | AE16: 0 | AF16: 0 | AG16: 0 | AH16: 0 | AI16: 0 | AJ16: 0 | AK16: 0 | AL16: 0 | AM16: 0 | AN16: 0 | AO16: 0 | AP16: 0 | AQ16: 0 | AR16: 0 | AS16: 0 | AT16: 0 | AU16: 0 | AV16: 0 | AW16: 0 | AX16: 0 | AY16: 0 | AZ16: 0 | BA16: 0 | BB16: 0 | BC16: 0 | BD16: 0
A17: First Loss Fund Balance | B17: 13500 | C17: 13500 | D17: 13500 | E17: 13500 | F17: 13500 | G17: 13500 | H17: 13500 | I17: 13500 | J17: 13500 | K17: 13500 | L17: 13500 | M17: 13500 | N17: 13500 | O17: 13500 | P17: 13500 | Q17: 13500 | R17: 13500 | S17: 13500 | T17: 13500 | U17: 13500 | V17: 13500 | W17: 13500 | X17: 13500 | Y17: 13500 | Z17: 13500 | AA17: 13500 | AB17: 13500 | AC17: 13500 | AD17: 13500 | AE17: 13500 | AF17: 13500 | AG17: 15900 | AH17: 15900 | AI17: 15900 | AJ17: 15900 | AK17: 15900 | AL17: 15900 | AM17: 15900 | AN17: 15900 | AO17: 15900 | AP17: 15900 | AQ17: 15900 | AR17: 15900 | AS17: 15900 | AT17: 15900 | AU17: 15900 | AV17: 15900 | AW17: 15900 | AX17: 15900 | AY17: 15900 | AZ17: 15900 | BA17: 15900 | BB17: 15900 | BC17: 15900 | BD17: 0
A18: First Loss Fund as a % of the Notes | B18: =+B17/B9 -> 0.045 | C18: 0.045 | D18: 0.045 | E18: 0.045 | F18: 0.045 | G18: 0.045 | H18: 0.045 | I18: 0.045 | J18: 0.045 | K18: 0.045 | L18: 0.045 | M18: 0.045 | N18: 0.045 | O18: 0.045 | P18: 0.062598825 | Q18: 0.06508062767 | R18: 0.06752194463 | S18: 0.07050639258 | T18: 0.07360076763 | U18: 0.07666882475 | V18: 0.07959483282 | W18: 0.08327730108 | X18: 0.08678937184 | Y18: 0.09036930924 | Z18: 0.09383862537 | AA18: 0.09782963151 | AB18: 0.1025641026 | AC18: =+AC17/AC9 -> 0.1070697778 | AD18: 0.1119004004 | AE18: 0.1164023901 | AF18: 0.1217345825 | AG18: 0.1493630932 | AH18: 0.1553083212 | AI18: =+AI17/AI9 -> 0.1615049416 | AJ18: 0.1685482589 | AK18: 0.1772160364 | AL18: 0.1856869248 | AM18: 0.1963350785 | AN18: 0.2063541504 | AO18: =+AO17/AO9 -> 0.218241713 | AP18: 0.2284614058 | AQ18: =+AQ17/AQ9 -> 0.2390222636 | AR18: 0.2507293227 | AS18: =+AS17/AS9 -> 0.2645722748 | AT18: 0.2769166463 | AU18: =+AU17/AU9 -> 0.29247834 | AV18: 0.3074899921 | AW18: =+AW17/AW9 -> 0.3240665254 | AX18: 0.343153124 | AY18: =+AY17/AY9 -> 0.3635947862 | AZ18: 0.3858099583 | BA18: =+BA17/BA9 -> 0.4142135153 | BB18: 0.4375825627 | BC18: =+BC17/BC9 -> 0.4657702786 | BD18: 0
A19: Opening PDL Balance | B19: 0 | C19: 0 | D19: 0 | E19: 0 | F19: 0 | G19: 0 | H19: 0 | I19: 0 | J19: 0 | K19: 0 | L19: 0 | M19: 0 | N19: 0 | O19: 0 | P19: 0 | Q19: 0 | R19: 0 | S19: 0 | T19: 0 | U19: 0 | V19: 0 | W19: 0 | X19: 0 | Y19: 0 | Z19: 0 | AA19: 0 | AB19: 0 | AC19: 0 | AD19: 0 | AE19: 0 | AF19: 0 | AG19: 0 | AH19: 0 | AI19: 0 | AJ19: 0 | AK19: 0 | AL19: 0 | AM19: 0 | AN19: 0 | AO19: 0 | AP19: 0 | AQ19: 0 | AR19: 0 | AS19: 0 | AT19: 0 | AU19: 0 | AV19: 0 | AW19: 0 | AX19: 0 | AY19: 0 | AZ19: 0 | BA19: 0 | BB19: 0 | BC19: 0 | BD19: 0
A20: Movement into >12 month arrears band | B20: 264 | C20: 36 | D20: 145 | E20: 60 | F20: 472 | G20: 128 | H20: 49 | I20: 53 | J20: 194 | K20: -171 | L20: -114 | M20: 214 | N20: 665 | O20: 65 | P20: -148 | Q20: 692 | R20: -343 | S20: 395 | T20: -387 | U20: 246 | V20: 517 | W20: 526 | X20: -208 | Y20: 455 | Z20: 404 | AA20: 355 | AB20: 425 | AC20: 720 | AD20: 490 | AE20: 382 | AF20: 428 | AG20: 287 | AH20: 127 | AI20: -191 | AJ20: 9 | AK20: 595 | AL20: 290 | AM20: 216 | AN20: -40 | AO20: 302 | AP20: -244 | AQ20: -283 | AR20: -67 | AS20: -51 | AT20: -125 | AU20: -194 | AV20: -39 | AW20: -137 | AX20: -221 | AY20: -258 | AZ20: -321 | BA20: -112 | BB20: -257 | BC20: -84 | BD20: -116
A21: Losses made during the period | B21: 297 | C21: 287 | D21: 346 | E21: 402 | F21: 437 | G21: 352 | H21: 358 | I21: 898 | J21: 326 | K21: 928 | L21: 669 | M21: 710 | N21: 647 | O21: 740 | P21: 1261 | Q21: 1046 | R21: 1731 | S21: 1927 | T21: 2285 | U21: 1339 | V21: 1003 | W21: 1084 | X21: 1327 | Y21: 476 | Z21: 605 | AA21: 840 | AB21: 583 | AC21: 503 | AD21: 582 | AE21: 548 | AF21: 591 | AG21: 420 | AH21: 544 | AI21: 433 | AJ21: 425 | AK21: 416 | AL21: 450 | AM21: 407 | AN21: 114 | AO21: 249 | AP21: 363 | AQ21: 86 | AR21: 133 | AS21: 177 | AT21: 80 | AU21: 155 | AV21: 99 | AW21: 177 | AX21: 62 | AY21: 80 | AZ21: 185 | BA21: 63 | BB21: -2 | BC21: -102 | BD21: 150
A22: Total Losses for the period | B22: =+B21+B20 -> 561 | C22: 323 | D22: 491 | E22: 462 | F22: 909 | G22: 480 | H22: 407 | I22: 951 | J22: 520 | K22: 757 | L22: 555 | M22: 924 | N22: 1312 | O22: 805 | P22: 1113 | Q22: 1738 | R22: 1388 | S22: 2322 | T22: 1898 | U22: 1585 | V22: 1520 | W22: 1610 | X22: 1119 | Y22: 931 | Z22: 1009 | AA22: 1195 | AB22: 1008 | AC22: =+AC21+AC20 -> 1223 | AD22: 1072 | AE22: 930 | AF22: 1019 | AG22: 707 | AH22: 671 | AI22: =+AI21+AI20 -> 242 | AJ22: 434 | AK22: 1011 | AL22: 740 | AM22: 623 | AN22: 74 | AO22: =+AO21+AO20 -> 551 | AP22: 119 | AQ22: =+AQ21+AQ20 -> -197 | AR22: 66 | AS22: =+AS21+AS20 -> 126 | AT22: -45 | AU22: =+AU21+AU20 -> -39 | AV22: 60 | AW22: =+AW21+AW20 -> 40 | AX22: -159 | AY22: =+AY21+AY20 -> -178 | AZ22: -136 | BA22: =+BA21+BA20 -> -49 | BB22: -259 | BC22: =+BC21+BC20 -> -186 | BD22: 34
A23: Quarterly Recoveries | B23: 0 | C23: 70 | D23: 111 | E23: 163 | F23: 237 | G23: 329 | H23: 443 | I23: 256 | J23: 340 | K23: 623 | L23: 403 | M23: 246 | N23: 242 | O23: 255 | P23: 356 | Q23: 152 | R23: 332 | S23: 350 | T23: 380 | U23: 174 | V23: 301 | W23: 232 | X23: 343 | Y23: 202 | Z23: 335 | AA23: 306 | AB23: 154 | AC23: 342 | AD23: 383 | AE23: 336 | AF23: 421 | AG23: 426 | AH23: 328 | AI23: 622 | AJ23: 373 | AK23: 459 | AL23: 413 | AM23: 496 | AN23: 452 | AO23: 432 | AP23: 693 | AQ23: 354 | AR23: 472 | AS23: 572 | AT23: 307 | AU23: 546 | AV23: 396 | AW23: 493 | AX23: 501 | AY23: 405 | AZ23: 503 | BA23: 514 | BB23: 499 | BC23: 288 | BD23: 346
A24: Quarterly Loss Rate (annualised) | B24: =1-(1-B22/B8)^4 -> 0.007459044745 | C24: 0.004299716391 | D24: 0.006530612129 | E24: 0.006145785003 | F24: 0.01206502579 | G24: 0.006384656377 | H24: =1-(1-H22/H8)^4 -> 0.005415633385 | I24: 0.01261983392 | J24: 0.006915327488 | K24: 0.01005519429 | L24: 0.007379490315 | M24: 0.01226319838 | N24: =1-(1-N22/N8)^4 -> 0.01737891128 | O24: 0.0106902089 | P24: 0.02048443963 | Q24: 0.0330952622 | R24: 0.02748119141 | S24: 0.04763311117 | T24: =1-(1-T22/T8)^4 -> 0.04075285924 | U24: 0.03552270194 | V24: 0.03536814498 | W24: 0.03913844691 | X24: 0.02846647391 | Y24: 0.02469647094 | Z24: =1-(1-Z22/Z8)^4 -> 0.02776051021 | AA24: 0.03419158222 | AB24: 0.03028239091 | AC24: 0.03823804813 | AD24: 0.03507194662 | AE24: 0.03169157371 | AF24: =1-(1-AF22/AF8)^4 -> 0.03625132874 | AG24: 0.02630247745 | AH24: 0.02596020467 | AI24: 0.009796307196 | AJ24: 0.01827589625 | AK24: 0.04431692402 | AL24: =1-(1-AL22/AL8)^4 -> 0.03412259965 | AM24: 0.03041824579 | AN24: 0.003836024159 | AO24: =1-(1-AO22/AO8)^4 -> 0.02991040507 | AP24: 0.006821990146 | AQ24: 0 | AR24: 0.004156562321 | AS24: =1-(1-AS22/AS8)^4 -> 0.008360041716 | AT24: 0 | AU24: 0 | AV24: =1-(1-AV22/AV8)^4 -> 0.00463328629 | AW24: 0.003257088043 | AX24: 0 | AY24: 0 | AZ24: 0 | BA24: 0 | BB24: 0 | BC24: 0 | BD24: 0
A25: Quarterly Losses as a % of the assets | B25: =+B22/300000 -> 0.00187 | C25: =+C22/B8 -> 0.001076666667 | D25: =+D22/C8 -> 0.001636666667 | E25: =+E22/D8 -> 0.00154 | F25: 0.00303 | G25: 0.0016 | H25: 0.001356666667 | I25: 0.00317 | J25: 0.001733333333 | K25: 0.002523333333 | L25: 0.00185 | M25: 0.00308 | N25: 0.004373333333 | O25: 0.002683333333 | P25: 0.00371 | Q25: 0.0080590191 | R25: 0.006691252682 | S25: 0.01161377448 | T25: 0.009912676527 | U25: 0.00864127531 | V25: 0.00863234175 | W25: 0.009492420803 | X25: 0.006902762956 | Y25: 0.005985252236 | Z25: 0.006754269113 | AA25: 0.008306456097 | AB25: 0.007304612486 | AC25: 0.009291547958 | AD25: 0.008502133464 | AE25: 0.007708694247 | AF25: 0.008786224855 | AG25: 0.006375285175 | AH25: 0.006303310412 | AI25: 0.002363812184 | AJ25: 0.004408373879 | AK25: 0.01071712514 | AL25: 0.008247790372 | AM25: =+AM22/AL8 -> 0.007275657495 | AN25: =+AN22/AM8 -> 0.0009137607429 | AO25: =+AO22/AN8 -> 0.007151002152 | AP25: =+AP22/AO8 -> 0.001633381302 | AQ25: 0 | AR25: =+AR22/AQ8 -> 0.0009921638678 | AS25: =+AS22/AR8 -> 0.001986913546 | AT25: 0 | AU25: 0 | AV25: =+AV22/AU8 -> 0.001103698872 | AW25: =+AW22/AV8 -> 0.0007735597285 | AX25: 0 | AY25: 0 | AZ25: 0 | BA25: 0 | BB25: 0 | BC25: 0 | BD25: 0
A26: PDL Replenishment made during the quarter | B26: 561 | C26: 323 | D26: 491 | E26: 462 | F26: 909 | G26: 480 | H26: 407 | I26: 951 | J26: 520 | K26: 757 | L26: 555 | M26: 924 | N26: 1312 | O26: 805 | P26: 1113 | Q26: 1738 | R26: 1388 | S26: 2322 | T26: 1898 | U26: 1585 | V26: 1520 | W26: 1610 | X26: 1119 | Y26: 931 | Z26: 1009 | AA26: 1195 | AB26: 1008 | AC26: 1223 | AD26: 1072 | AE26: 930 | AF26: 1019 | AG26: 707 | AH26: 671 | AI26: 242 | AJ26: 434 | AK26: 1011 | AL26: 740 | AM26: 623 | AN26: 74 | AO26: 551 | AP26: 119 | AQ26: -197 | AR26: 66 | AS26: 126 | AT26: -45 | AU26: -39 | AV26: 60 | AW26: 40 | AX26: -159 | AY26: -178 | AZ26: -136 | BA26: -49 | BB26: -259 | BC26: -186 | BD26: 34
A27: Outstanding PDL at end of the quarter | B27: =B19+B22-B26 -> 0 | C27: 0 | D27: 0 | E27: 0 | F27: 0 | G27: 0 | H27: 0 | I27: 0 | J27: 0 | K27: 0 | L27: 0 | M27: 0 | N27: 0 | O27: 0 | P27: 0 | Q27: 0 | R27: 0 | S27: 0 | T27: 0 | U27: 0 | V27: 0 | W27: 0 | X27: 0 | Y27: 0 | Z27: 0 | AA27: 0 | AB27: 0 | AC27: =AC19+AC22-AC26 -> 0 | AD27: 0 | AE27: 0 | AF27: 0 | AG27: 0 | AH27: 0 | AI27: =AI19+AI22-AI26 -> 0 | AJ27: 0 | AK27: 0 | AL27: 0 | AM27: 0 | AN27: 0 | AO27: =AO19+AO22-AO26 -> 0 | AP27: 0 | AQ27: =AQ19+AQ22-AQ26 -> 0 | AR27: 0 | AS27: =AS19+AS22-AS26 -> 0 | AT27: =AT19+AT22-AT26 -> 0 | AU27: 0 | AV27: 0 | AW27: 0 | AX27: 0 | AY27: =AY19+AY22-AY26 -> 0 | AZ27: 0 | BA27: =BA19+BA22-BA26 -> 0 | BB27: =BB19+BB22-BB26 -> 0 | BC27: =BC19+BC22-BC26 -> 0 | BD27: =BD19+BD22-BD26 -> 0
A28: Spread Trap repayment in the quarter | B28: N/A | C28: N/A | D28: N/A | E28: N/A | F28: N/A | G28: N/A | H28: N/A | I28: N/A | J28: N/A | K28: N/A | L28: N/A | M28: N/A | N28: N/A | O28: N/A | P28: N/A | Q28: N/A | R28: N/A | S28: N/A | T28: N/A | U28: N/A | V28: N/A | W28: N/A | X28: N/A | Y28: N/A | Z28: N/A | AA28: N/A | AB28: N/A | AC28: N/A | AD28: N/A | AE28: N/A | AF28: N/A | AG28: N/A | AH28: N/A | AI28: N/A | AJ28: N/A | AK28: N/A | AL28: N/A | AM28: N/A | AN28: N/A | AO28: N/A | AP28: N/A | AQ28: N/A | AR28: N/A | AS28: N/A | AT28: N/A | AU28: N/A | AV28: N/A | AW28: N/A | AX28: N/A | AY28: N/A | AZ28: N/A | BA28: N/A | BB28: N/A | BC28: N/A | BD28: N/A
A29: Spread % (WA Funding Rate less WA Interest Rate) | B29: 0.0433 | C29: 0.0404 | D29: 0.0424 | E29: 0.0403 | F29: 0.0394 | G29: 0.0357 | H29: 0.0349 | I29: 0.0318 | J29: 0.032 | K29: 0.0338 | L29: 0.0298 | M29: 0.0393 | N29: 0.0455 | O29: 0.0437 | P29: 0.0446 | Q29: 0.06 | R29: 0.0707 | S29: 0.0776 | T29: 0.0835 | U29: 0.0804 | V29: 0.0798 | W29: 0.0791 | X29: 0.0786 | Y29: 0.0784 | Z29: 0.0774 | AA29: 0.0774 | AB29: 0.0772 | AC29: 0.0757 | AD29: 0.075 | AE29: 0.0757 | AF29: 0.0787 | AG29: 0.0804 | AH29: 0.0803 | AI29: 0.08 | AJ29: 0.0796 | AK29: 0.0792 | AL29: 0.0788 | AM29: 0.0784 | AN29: 0.0784 | AO29: 0.0786 | AP29: 0.0788 | AQ29: 0.0789 | AR29: 0.079 | AS29: 0.0795 | AT29: 0.0788 | AU29: 0.0792 | AV29: 0.0812 | AW29: 0.081 | AX29: 0.0812 | AY29: 0.0817 | AZ29: 0.0816 | BA29: 0.0795 | BB29: 0.0791 | BC29: 0.0778 | BD29: 0
A30: Total Income as a % of the Mortgages | B30: 0.0402 | C30: 0.0361 | D30: 0.0302 | E30: 0.0317 | F30: 0.0293 | G30: 0.0299 | H30: 0.0279 | I30: 0.0283 | J30: 0.0312 | K30: 0.0327 | L30: 0.0338 | M30: 0.0382 | N30: 0.0372 | O30: 0.0345 | P30: 0.0333 | Q30: 0.0312 | R30: 0.027 | S30: 0.0253 | T30: 0.0252 | U30: 0.0249 | V30: 0.0262 | W30: 0.0251 | X30: 0.0225 | Y30: 0.0259 | Z30: 0.0228 | AA30: 0.0283 | AB30: 0.0249 | AC30: 0.0257 | AD30: 0.0252 | AE30: 0.0259 | AF30: 0.0253 | AG30: 0.0254 | AH30: 0.0264 | AI30: 0.0258 | AJ30: 0.0258 | AK30: 0.0263 | AL30: 0.0265 | AM30: 0.0271 | AN30: 0.0211 | AO30: 0.0243 | AP30: 0.0277 | AQ30: 0.022 | AR30: 0.0266 | AS30: 0.026 | AT30: 0.0261 | AU30: 0.0222 | AV30: 0.0234 | AW30: 0.0295 | AX30: 0.0223 | AY30: 0.0235 | AZ30: 0.028 | BA30: 0.0274 | BB30: 0.022 | BC30: 0.0205 | BD30: 0
A31: Quarterly surplus income to the Issuer | B31: 2220 | C31: 3005 | D31: 3663 | E31: 3792 | F31: 2904 | G31: 3262 | H31: 3059 | I31: 2622 | J31: 3075 | K31: 2869 | L31: 2414 | M31: 2682 | N31: 2399 | O31: 2204 | P31: 1290 | Q31: 2262 | R31: 2743 | S31: 1599 | T31: 2158 | U31: 2086 | V31: 2167 | W31: 1736 | X31: 1644 | Y31: 2237 | Z31: 1567 | AA31: 2074 | AB31: 1600 | AC31: 1322 | AD31: 1301 | AE31: 1446 | AF31: 1275 | AG31: 0 | AH31: 1552 | AI31: 1880 | AJ31: 1591 | AK31: 960 | AL31: 1167 | AM31: 1238 | AN31: 1173 | AO31: 903 | AP31: 1513 | AQ31: 1353 | AR31: 1354 | AS31: 1194 | AT31: 1292 | AU31: 1014 | AV31: 953 | AW31: 1257 | AX31: 1045 | AY31: 1060 | AZ31: 1158 | BA31: 968 | BB31: 909 | BC31: 736 | BD31: 16666
A32: Surplus Income as a % of the assets | B32: =+B31/300000 -> 0.0074 | C32: =+C31/B8 -> 0.01001666667 | D32: =+D31/C8 -> 0.01221 | E32: =+E31/D8 -> 0.01264 | F32: =+F31/E8 -> 0.00968 | G32: 0.01087333333 | H32: 0.01019666667 | I32: 0.00874 | J32: 0.01025 | K32: 0.009563333333 | L32: 0.008046666667 | M32: 0.00894 | N32: =+N31/M8 -> 0.007996666667 | O32: 0.007346666667 | P32: 0.0043 | Q32: 0.0104887809 | R32: 0.01322341938 | S32: 0.00799759922 | T32: 0.01127057742 | U32: 0.01137268158 | V32: 0.01230676617 | W32: 0.01023530591 | X32: 0.01014132466 | Y32: 0.01438132036 | Z32: 0.0104895339 | AA32: 0.01441639326 | AB32: 0.01159462299 | AC32: 0.01004368471 | AD32: 0.01031835414 | AE32: 0.01198577622 | AF32: 0.01099355907 | AG32: 0 | AH32: 0.01457934092 | AI32: 0.01836349961 | AJ32: 0.01616065171 | AK32: 0.01017649865 | AL32: 0.01300698833 | AM32: =+AM31/AL8 -> 0.01445788761 | AN32: 0.01448434259 | AO32: 0.01171933746 | AP32: 0.02076727655 | AQ32: 0.01944088253 | AR32: 0.02035439208 | AS32: 0.01882837122 | AT32: 0.02149841634 | AU32: 0.01765999673 | AV32: 0.01753041708 | AW32: 0.02430911447 | AX32: 0.0212988886 | AY32: 0.02287696825 | AZ32: 0.02648054051 | BA32: 0.02348805659 | BB32: 0.02368055037 | BC32: 0.02025520611 | BD32: 0
A33: Number of Properties in Possession with Paragon | B33: 5 | C33: 18 | D33: 9 | E33: 16 | F33: 12 | G33: 10 | H33: 20 | I33: 17 | J33: 16 | K33: 14 | L33: 14 | M33: 21 | N33: 15 | O33: 27 | P33: 25 | Q33: 21 | R33: 14 | S33: 11 | T33: 5 | U33: 5 | V33: 6 | W33: 8 | X33: 8 | Y33: 1 | Z33: 2 | AA33: 1 | AB33: 0 | AC33: 0 | AD33: 0 | AE33: 0 | AF33: 0 | AG33: 1 | AH33: 0 | AI33: 0 | AJ33: 0 | AK33: 0 | AL33: 1 | AM33: 1 | AN33: 0 | AO33: 0 | AP33: 0 | AQ33: 0 | AR33: 0 | AS33: 0 | AT33: 1 | AU33: 0 | AV33: 0 | AW33: 0 | AX33: 0 | AY33: 0 | AZ33: 0 | BA33: 0 | BB33: 0 | BC33: 0 | BD33: 0
A34: % of Mortgage Assets | B34: =+B6/B8 -> 0.68995 | C34: 0.8988566667 | D34: 0.87165 | E34: 0.8750266667 | F34: 0.8764033333 | G34: 0.9350733333 | H34: =+H6/H8 -> 0.9551666667 | I34: 0.8735833333 | J34: 0.86989 | K34: 0.8254233333 | L34: 0.7795 | M34: 0.7559 | N34: =+N6/N8 -> 0.7687133333 | O34: 0.7403766667 | P34: 1 | Q34: 1 | R34: 1 | S34: 1 | T34: =+T6/T8 -> 1 | U34: 1 | V34: 1 | W34: 1 | X34: 1 | Y34: 1 | Z34: =+Z6/Z8 -> 1 | AA34: 1 | AB34: 1 | AC34: 1 | AD34: 1 | AE34: 1 | AF34: =+AF6/AF8 -> 1 | AG34: 1 | AH34: 1 | AI34: 1 | AJ34: 1 | AK34: 1 | AL34: =+AL6/AL8 -> 1 | AM34: 1 | AN34: 1 | AO34: =+AO6/AO8 -> 1 | AP34: 1 | AQ34: 1 | AR34: 1 | AS34: 1 | AT34: 1 | AU34: 1 | AV34: =+AV6/AV8 -> 1 | AW34: 1 | AX34: =+AX6/AX8 -> 1 | AY34: 1 | AZ34: 1 | BA34: 1 | BB34: 1 | BC34: 1 | BD34: 0
A35: % of Available Principal Cash to Purchase New Assets | B35: =+B7/B8 -> 0.31005 | C35: 0.1011433333 | D35: 0.12835 | E35: 0.1249733333 | F35: 0.1235966667 | G35: 0.06492666667 | H35: =+H7/H8 -> 0.04483333333 | I35: 0.1264166667 | J35: 0.13011 | K35: 0.1745766667 | L35: 0.2205 | M35: 0.2441 | N35: =+N7/N8 -> 0.2312866667 | O35: 0.2596233333 | P35: 0 | Q35: 0 | R35: 0 | S35: 0 | T35: =+T7/T8 -> 0 | U35: 0 | V35: 0 | W35: 0 | X35: 0 | Y35: 0 | Z35: =+Z7/Z8 -> 0 | AA35: 0 | AB35: 0 | AC35: 0 | AD35: 0 | AE35: 0 | AF35: =+AF7/AF8 -> 0 | AG35: 0 | AH35: 0 | AI35: 0 | AJ35: 0 | AK35: 0 | AL35: =+AL7/AL8 -> 0 | AM35: 0 | AN35: 0 | AO35: =+AO7/AO8 -> 0 | AP35: 0 | AQ35: 0 | AR35: 0 | AS35: 0 | AT35: 0 | AU35: 0 | AV35: 0 | AW35: 0 | AX35: 0 | AY35: 0 | AZ35: 0 | BA35: 0 | BB35: 0 | BC35: 0 | BD35: 0
A36: Performing Loans | B36: 0.9443 | C36: 0.9535 | D36: 0.9479 | E36: 0.9403 | F36: 0.9318 | G36: 0.9316 | H36: 0.931 | I36: 0.9251 | J36: 0.9236 | K36: 0.9235 | L36: 0.9222 | M36: 0.9165 | N36: 0.9197 | O36: 0.9135 | P36: 0.9028 | Q36: 0.8861 | R36: 0.8717 | S36: 0.8649 | T36: 0.853 | U36: 0.8393 | V36: 0.8484 | W36: 0.8458 | X36: 0.8375 | Y36: 0.8297 | Z36: 0.8323 | AA36: 0.8314 | AB36: 0.8328 | AC36: 0.8377 | AD36: 0.8388 | AE36: 0.8469 | AF36: 0.8411 | AG36: 0.8305 | AH36: 0.8302 | AI36: 0.8329 | AJ36: 0.8365 | AK36: 0.8406 | AL36: 0.8498 | AM36: 0.8555 | AN36: 0.8599 | AO36: 0.8647109452 | AP36: 0.8687247989 | AQ36: 0.8588116532 | AR36: 0.8654736957 | AS36: 0.8595336902 | AT36: 0.8647655542 | AU36: 0.8645550646 | AV36: 0.8673532089 | AW36: 0.8656139802 | AX36: 0.8633505154 | AY36: 0.8612763307 | AZ36: 0.8626187413 | BA36: 0.8654311906 | BB36: 0.8635951409 | BC36: 0.8688946117 | BD36: 0
A37: >1 to 2 months arrears | B37: 0.0213 | C37: 0.0158 | D37: 0.0182 | E37: 0.0211 | F37: 0.0219 | G37: 0.0191 | H37: 0.0182 | I37: 0.0187 | J37: 0.0212 | K37: 0.022 | L37: 0.0277 | M37: 0.0263 | N37: 0.0266 | O37: 0.0284 | P37: 0.0359 | Q37: 0.0359 | R37: 0.0406 | S37: 0.043 | T37: 0.0433 | U37: 0.0472 | V37: 0.047 | W37: 0.0471 | X37: 0.0518 | Y37: 0.053 | Z37: 0.0376 | AA37: 0.0411 | AB37: 0.0405 | AC37: 0.0395 | AD37: 0.0364 | AE37: 0.0304 | AF37: 0.0328 | AG37: 0.037 | AH37: 0.0358 | AI37: 0.032 | AJ37: 0.0281 | AK37: 0.0314 | AL37: 0.0273 | AM37: 0.0301 | AN37: 0.0274 | AO37: 0.02541244456 | AP37: 0.01997602292 | AQ37: 0.02779093356 | AR37: 0.01746611743 | AS37: 0.0211994965 | AT37: 0.02063733546 | AU37: 0.02046016679 | AV37: 0.02431279608 | AW37: 0.02592444324 | AX37: 0.02512678621 | AY37: 0.02374182354 | AZ37: 0.02876913599 | BA37: 0.03078609255 | BB37: 0.0233900295 | BC37: 0.02469522873 | BD37: 0
A38: >2 to 3 months arrears | B38: 0.01 | C38: 0.0128 | D38: 0.0113 | E38: 0.0128 | F38: 0.0123 | G38: 0.0147 | H38: 0.0146 | I38: 0.0139 | J38: 0.0127 | K38: 0.0116 | L38: 0.0123 | M38: 0.0162 | N38: 0.0155 | O38: 0.0191 | P38: 0.0166 | Q38: 0.0225 | R38: 0.0201 | S38: 0.0221 | T38: 0.025 | U38: 0.0259 | V38: 0.0257 | W38: 0.0292 | X38: 0.0286 | Y38: 0.0307 | Z38: 0.0386 | AA38: 0.0307 | AB38: 0.0276 | AC38: 0.0238 | AD38: 0.0263 | AE38: 0.0257 | AF38: 0.027 | AG38: 0.0287 | AH38: 0.0246 | AI38: 0.0225 | AJ38: 0.0233 | AK38: 0.0186 | AL38: 0.0213 | AM38: 0.0212 | AN38: 0.0201 | AO38: 0.0181035785 | AP38: 0.02095188697 | AQ38: 0.0155338632 | AR38: 0.01833295073 | AS38: 0.01516095792 | AT38: 0.01618451463 | AU38: 0.01975939748 | AV38: 0.01568786863 | AW38: 0.01586692359 | AX38: 0.0144011264 | AY38: 0.01452262839 | AZ38: 0.01421545981 | BA38: 0.01222892642 | BB38: 0.0154716538 | BC38: 0.01186427173 | BD38: 0
A39: >3 months arrears | B39: 0.0243 | C39: 0.018 | D39: 0.0226 | E39: 0.0259 | F39: 0.034 | G39: 0.0346 | H39: 0.0362 | I39: 0.0423 | J39: 0.0425 | K39: 0.0429 | L39: 0.0378 | M39: 0.041 | N39: 0.0382 | O39: 0.039 | P39: 0.0447 | Q39: 0.0554 | R39: 0.0674 | S39: 0.07 | T39: 0.0788 | U39: 0.0876 | V39: 0.0789 | W39: 0.0778 | X39: 0.082 | Y39: 0.0866 | Z39: 0.0915 | AA39: 0.0969 | AB39: 0.0991 | AC39: 0.099 | AD39: 0.0985 | AE39: 0.0969 | AF39: 0.0991 | AG39: 0.1038 | AH39: 0.1094 | AI39: 0.1126 | AJ39: 0.1121 | AK39: 0.1095 | AL39: 0.1017 | AM39: 0.0932 | AN39: 0.0927 | AO39: 0.09177303171 | AP39: 0.09034729122 | AQ39: 0.09786355 | AR39: 0.09872723612 | AS39: 0.1041058553 | AT39: 0.09841259572 | AU39: 0.09522537111 | AV39: 0.09264612635 | AW39: 0.09259465295 | AX39: 0.09712157196 | AY39: 0.1004592174 | AZ39: 0.09439666287 | BA39: 0.09155379047 | BB39: 0.09754317576 | BC39: 0.09454588782 | BD39: 0
A40: Total | B40: =SUM(B36:B39) -> 0.9999 | C40: 1.0001 | D40: 1 | E40: 1.0001 | F40: 1 | G40: 1 | H40: 1 | I40: 1 | J40: 1 | K40: 1 | L40: 1 | M40: 1 | N40: 1 | O40: 1 | P40: 1 | Q40: 0.9999 | R40: 0.9998 | S40: 1 | T40: 1.0001 | U40: 1 | V40: 1 | W40: 0.9999 | X40: 0.9999 | Y40: 1 | Z40: 1 | AA40: 1.0001 | AB40: 1 | AC40: =SUM(AC36:AC39) -> 1 | AD40: 1 | AE40: 0.9999 | AF40: 1 | AG40: 1 | AH40: 1 | AI40: =SUM(AI36:AI39) -> 1 | AJ40: 1 | AK40: 1.0001 | AL40: 1.0001 | AM40: 1 | AN40: 1.0001 | AO40: 1 | AP40: 1 | AQ40: 1 | AR40: 1 | AS40: =SUM(AS36:AS39) -> 1 | AT40: 1 | AU40: 1 | AV40: 1 | AW40: 1 | AX40: 1 | AY40: =SUM(AY36:AY39) -> 1 | AZ40: 1 | BA40: 1 | BB40: =SUM(BB36:BB39) -> 1 | BC40: 1 | BD40: =SUM(BD36:BD39) -> 0
A42: Underlying Assets | B42: 2005-04-29 | C42: 2005-07-29 | D42: 2005-10-31 | E42: 2006-01-31 | F42: 2006-04-28 | G42: 2006-07-31 | H42: 2006-10-31 | I42: 2007-01-31 | J42: 2007-04-30 | K42: 2007-07-31 | L42: 2007-10-31 | M42: 2008-01-31 | N42: 2008-04-30 | O42: 2008-07-31 | P42: 2008-10-31 | Q42: 2009-01-30 | R42: 2009-04-30 | S42: 2009-07-31 | T42: 2009-10-30 | U42: 2010-01-29 | V42: 2010-04-30 | W42: 2010-07-30 | X42: 2010-10-29 | Y42: 2011-01-31 | Z42: 2011-04-28 | AA42: 2011-07-29 | AB42: 2011-10-31 | AC42: 2012-01-31 | AD42: 2012-04-30 | AE42: 2012-07-31 | AF42: 2012-10-31 | AG42: 2013-01-31 | AH42: 2013-04-30 | AI42: 2013-07-31 | AJ42: 2013-10-31 | AK42: 2014-01-31 | AL42: 2014-04-30 | AM42: 2014-07-31 | AN42: 2014-10-31 | AO42: 2015-01-30 | AP42: 2015-04-30 | AQ42: 2015-07-31 | AR42: =+AR5 -> 2015-10-30 | AS42: 2016-01-29 | AT42: 2016-04-29 | AU42: 2016-07-29 | AV42: 2016-10-31 | AW42: 2017-01-31 | AX42: =+AX5 -> 2017-04-28 | AY42: 2017-07-31 | AZ42: =+AZ5 -> 2017-10-31 | BA42: 2018-01-31 | BB42: =+BB5 -> 2018-04-30 | BC42: 2018-07-31 | BD42: =+BD5 -> 2018-10-31
A43: Weighted Average LTV | B43: 0.8753 | C43: 0.8643 | D43: 0.8699 | E43: 0.8735 | F43: 0.8697 | G43: 0.8674 | H43: 0.8622 | I43: 0.8603 | J43: 0.8579 | K43: 0.86 | L43: 0.8595 | M43: 0.8507 | N43: 0.8441 | O43: 0.8419 | P43: 0.8382 | Q43: 0.8379 | R43: 0.8376 | S43: 0.8366 | T43: 0.8353 | U43: 0.8348 | V43: 0.8335 | W43: 0.8337 | X43: 0.8371 | Y43: 0.8376 | Z43: 0.8374 | AA43: 0.8371 | AB43: 0.8378 | AC43: 0.8358 | AD43: 0.8375 | AE43: 0.8357 | AF43: 0.8365 | AG43: 0.8362 | AH43: 0.8359 | AI43: 0.8347 | AJ43: 0.8356 | AK43: 0.8344 | AL43: 0.8328 | AM43: 0.8324 | AN43: 0.8327682473 | AO43: 0.8321074029 | AP43: 0.8308459905 | AQ43: 0.8293940348 | AR43: 0.8292043436 | AS43: 0.8292204558 | AT43: 0.829172229 | AU43: 0.8275353717 | AV43: 0.8212984417 | AW43: 0.8196767323 | AX43: 0.8169454165 | AY43: 0.8092915339 | AZ43: 0.8066022566 | BA43: 0.8046996097 | BB43: 0.7989493402 | BC43: 0.799999172 | BD43: 0
A44: Weighted Average Nationwide Indexed LTV | B44: 0.805 | C44: 0.8038 | D44: 0.811 | E44: 0.8255 | F44: 0.8138 | G44: 0.8022 | H44: 0.7942 | I44: 0.7803 | J44: 0.7753 | K44: 0.7615 | L44: 0.7628 | M44: 0.7667 | N44: 0.7865 | O44: 0.8104 | P44: 0.8678 | Q44: 0.8959 | R44: 0.9435 | S44: 0.9149 | T44: 0.88 | U44: 0.8725 | V44: 0.8695 | W44: 0.8444 | X44: 0.856 | Y44: 0.8787 | Z44: 0.8836 | AA44: 0.864 | AB44: 0.8707 | AC44: 0.879 | AD44: 0.8936 | AE44: 0.8823 | AF44: 0.8854 | AG44: 0.8955 | AH44: 0.8949 | AI44: 0.875 | AJ44: 0.8604 | AK44: 0.8436 | AL44: 0.8299 | AM44: 0.7993 | AN44: 0.7919608596 | AO44: 0.7940393923 | AP44: 0.7946725054 | AQ44: 0.7745125624 | AR44: 0.7720640437 | AS44: 0.7718563733 | AT44: 0.7710187021 | AU44: 0.7489335275 | AV44: 0.7523162342 | AW44: 0.7532812767 | AX44: 0.7552089068 | AY44: 0.7297389622 | AZ44: 0.7235081845 | BA44: 0.7249526734 | BB44: 0.7168624126 | BC44: 0.718081078 | BD44: 0
A45: Weighted Average Halifax Indexed LTV | B45: 0.7952 | C45: 0.8122 | D45: 0.8101 | E45: 0.8093 | F45: 0.7964 | G45: 0.7917 | H45: 0.7905 | I45: 0.7634 | J45: 0.7524 | K45: 0.749 | L45: 0.7535 | M45: 0.7546 | N45: 0.7799 | O45: 0.8059 | P45: 0.8539 | Q45: 0.9145 | R45: 0.9374 | S45: 0.9423 | T45: 0.9146 | U45: 0.9123 | V45: 0.9026 | W45: 0.8907 | X45: 0.9091 | Y45: 0.9216 | Z45: 0.9404 | AA45: 0.935 | AB45: 0.9308 | AC45: 0.9455 | AD45: 0.9513 | AE45: 0.9424 | AF45: 0.9416 | AG45: 0.9558 | AH45: 0.9373 | AI45: 0.92 | AJ45: 0.9049 | AK45: 0.8985 | AL45: 0.8758 | AM45: 0.8554 | AN45: 0.8289166399 | AO45: 0.8315610141 | AP45: 0.8205110367 | AQ45: 0.779175312 | AR45: 0.7692131821 | AS45: 0.7759569536 | AT45: 0.7541638652 | AU45: 0.7349528889 | AV45: 0 | AW45: 0 | AX45: 0 | AY45: 0 | AZ45: 0 | BA45: 0 | BB45: 0 | BC45: 0 | BD45: 0
A46: Weighted Average LTV of the First Mortgagee | B46: 0.5934 | C46: 0.5916 | D46: 0.5967 | E46: 0.6005 | F46: 0.5989 | G46: 0.6016 | H46: 0.5995 | I46: 0.5979 | J46: 0.5981 | K46: 0.6001 | L46: 0.6016 | M46: 0.5987 | N46: 0.598 | O46: 0.5971 | P46: 0.5953 | Q46: 0.5965 | R46: 0.5973 | S46: 0.5984 | T46: 0.5986 | U46: 0.5996 | V46: 0.5995 | W46: 0.6012 | X46: 0.6004 | Y46: 0.6026 | Z46: 0.6037 | AA46: 0.6053 | AB46: 0.6071 | AC46: 0.6087 | AD46: 0.6106 | AE46: 0.6118 | AF46: 0.6137 | AG46: 0.6152 | AH46: 0.6163 | AI46: 0.6166 | AJ46: 0.6181 | AK46: 0.6189 | AL46: 0.6192 | AM46: 0.6211 | AN46: 0.6228003453 | AO46: 0.6240970227 | AP46: 0.6241046073 | AQ46: 0.6238451969 | AR46: 0.6233787899 | AS46: 0.6245888308 | AT46: 0.6256171457 | AU46: 0.6257266797 | AV46: 0.6254823741 | AW46: 0.6255272807 | AX46: 0.6246696424 | AY46: 0.6177318738 | AZ46: 0.6171525446 | BA46: 0.6159473358 | BB46: 0.6120080341 | BC46: 0.6120825799 | BD46: 0
A47: % of Variable Rate Mortgages | B47: 0.9867 | C47: 0.9909 | D47: 0.9937 | E47: 0.9952 | F47: 0.9966 | G47: 0.997 | H47: 0.9977 | I47: 0.9982 | J47: 0.9982 | K47: 0.9968 | L47: 0.9961 | M47: 0.9964 | N47: 0.9967 | O47: 0.9969 | P47: 0.9971 | Q47: 0.9971 | R47: 0.997 | S47: 0.9974 | T47: 0.9973 | U47: 0.9972 | V47: 0.9972 | W47: 0.9975 | X47: 0.9981 | Y47: 0.998 | Z47: 0.998 | AA47: 0.9979 | AB47: 0.9981 | AC47: 0.9982 | AD47: 0.9982 | AE47: 0.999 | AF47: 0.9999 | AG47: 1 | AH47: 1 | AI47: 1 | AJ47: 1 | AK47: 1 | AL47: 1 | AM47: 1 | AN47: 1 | AO47: 1 | AP47: 1 | AQ47: 1 | AR47: 1 | AS47: 1 | AT47: 1 | AU47: 1 | AV47: 1 | AW47: 1 | AX47: 1 | AY47: 1 | AZ47: 1 | BA47: 1 | BB47: 1 | BC47: 1 | BD47: 0
A48: % of Fixed Rate Mortgages | B48: 0.0133 | C48: 0.0091 | D48: 0.0063 | E48: 0.0048 | F48: 0.0048 | G48: 0.003 | H48: 0.0023 | I48: 0.0018 | J48: 0.0018 | K48: 0.0032 | L48: 0.0039 | M48: 0.0036 | N48: 0.0033 | O48: 0.0031 | P48: 0.0029 | Q48: 0.0029 | R48: 0.003 | S48: 0.0026 | T48: 0.0027 | U48: 0.0028 | V48: 0.0028 | W48: 0.0025 | X48: 0.0019 | Y48: 0.002 | Z48: 0.002 | AA48: 0.0021 | AB48: 0.0019 | AC48: 0.0018 | AD48: 0.0018 | AE48: 0.001 | AF48: 0.0001 | AG48: 0 | AH48: 0 | AI48: 0 | AJ48: 0 | AK48: 0 | AL48: 0 | AM48: 0 | AN48: 0 | AO48: 0 | AP48: 0 | AQ48: 0 | AR48: 0 | AS48: 0 | AT48: 0 | AU48: 0 | AV48: 0 | AW48: 0 | AX48: 0 | AY48: 0 | AZ48: 0 | BA48: 0 | BB48: 0 | BC48: 0 | BD48: 0
A49: Weighted Average Loan Size | B49: 23143.8 | C49: 24476.42 | D49: 25323.98 | E49: 26122.83 | F49: 26546.92 | G49: 26978 | H49: 27316.51 | I49: 27387.89 | J49: 27574 | K49: 27810.78 | L49: 27792.99 | M49: 27031.91 | N49: 26479.96 | O49: 26229.74 | P49: 26080.41 | Q49: 25861.48 | R49: 25685.39 | S49: 25316.95 | T49: 25067.97 | U49: 24796.73 | V49: 24609.59 | W49: 24333.42 | X49: 24089.92 | Y49: 23856.06 | Z49: 23564.99 | AA49: 23380.98 | AB49: 23104.29 | AC49: 22763.35 | AD49: 22529.02 | AE49: 22264.82 | AF49: 21959.82 | AG49: 21782.69 | AH49: 21740.63 | AI49: 21651.49 | AJ49: 21552.53 | AK49: 21250.9 | AL49: 21033.58 | AM49: 20690.79 | AN49: 20525.34293 | AO49: 20265.64762 | AP49: 20044.81739 | AQ49: 19952.39036 | AR49: 19712.44586 | AS49: 19493.17222 | AT49: 19300.13586 | AU49: 19141.77961 | AV49: 19010.46681 | AW49: 18877.87339 | AX49: 18743.85558 | AY49: 18576.98607 | AZ49: 18406.62562 | BA49: 18192.38491 | BB49: 18259.46595 | BC49: 18362.89514 | BD49: 0
A50: Weighted Average Interest Rate | B50: 0.0956 | C50: 0.0926 | D50: 0.0918 | E50: 0.0901 | F50: 0.0886 | G50: 0.0863 | H50: 0.0881 | I50: 0.0876 | J50: 0.0908 | K50: 0.0948 | L50: 0.0972 | M50: 0.1062 | N50: 0.1055 | O50: 0.1056 | P50: 0.1057 | Q50: 0.1056 | R50: 0.0955 | S50: 0.0954 | T50: 0.0954 | U50: 0.0954 | V50: 0.0953 | W50: 0.0953 | X50: 0.0954 | Y50: 0.0955 | Z50: 0.0954 | AA50: 0.0956 | AB50: 0.0957 | AC50: 0.0957 | AD50: 0.0957 | AE50: 0.0957 | AF50: 0.0957 | AG50: 0.0956 | AH50: 0.0956 | AI50: 0.0955 | AJ50: 0.0955 | AK50: 0.0955 | AL50: 0.0954 | AM50: 0.0954 | AN50: 0.09542112543 | AO50: 0.09529314989 | AP50: 0.09523034763 | AQ50: 0.09513493078 | AR50: 0.09510075409 | AS50: 0.09518133483 | AT50: 0.09496826558 | AU50: 0.09505846197 | AV50: 0.09500204506 | AW50: 0.09498199473 | AX50: 0.09482884671 | AY50: 0.0948348032 | AZ50: 0.0947236575 | BA50: 0.09468736306 | BB50: 0.09449398527 | BC50: 0.09420543291 | BD50: 0
A51: Weighted Average Maturity Date (years) | B51: 15.66 | C51: 15.97 | D51: 16.01 | E51: 15.95 | F51: 15.87 | G51: 15.81 | H51: 15.72 | I51: 15.62 | J51: 15.64 | K51: 15.66 | L51: 15.62 | M51: 15.52 | N51: 15.44 | O51: 15.31 | P51: 15.16 | Q51: 15.01 | R51: 14.86 | S51: 14.67 | T51: 14.47 | U51: 14.3 | V51: 14.15 | W51: 13.97 | X51: 13.8 | Y51: 13.66 | Z51: 13.53 | AA51: 13.36 | AB51: 13.19 | AC51: 13.04 | AD51: 12.91 | AE51: 12.78 | AF51: 12.65 | AG51: 12.52 | AH51: 12.41 | AI51: 12.27 | AJ51: 12.16 | AK51: 12.02 | AL51: 11.86 | AM51: 11.74 | AN51: 11.63247095 | AO51: 11.51508984 | AP51: 11.38468199 | AQ51: 11.25359504 | AR51: 11.09889667 | AS51: 10.96452645 | AT51: 10.8604874 | AU51: 10.75605695 | AV51: 10.64228781 | AW51: 10.515692 | AX51: 10.36242189 | AY51: 10.22138302 | AZ51: 10.11443334 | BA51: 9.986466126 | BB51: 9.869123674 | BC51: 9.741648375 | BD51: 0
A52: Weighted Average Seasoning (months) | B52: 14.78 | C52: 13.07 | D52: 14.53 | E52: 15.54 | F52: 16.41 | G52: 16.15 | H52: 16.59 | I52: 18.71 | J52: 19.19 | K52: 20.32 | L52: 21.62 | M52: 22.79 | N52: 23.06 | O52: 25.07 | P52: 27.35 | Q52: 30.27 | R52: 33.08 | S52: 35.97 | T52: 38.88 | U52: 41.81 | V52: 44.68 | W52: 47.69 | X52: 49.49 | Y52: 52.52 | Z52: 55.42 | AA52: 58.48 | AB52: 61.5 | AC52: 64.52 | AD52: 67.55 | AE52: 70.46 | AF52: 73.39 | AG52: 76.34 | AH52: 79.33 | AI52: 82.27 | AJ52: 85.14 | AK52: 88.15 | AL52: 91.12 | AM52: 94.04 | AN52: 96.98349656 | AO52: 99.97094058 | AP52: 102.939392 | AQ52: 105.87405 | AR52: 108.7936168 | AS52: 111.8033729 | AT52: 114.6604391 | AU52: 117.6379991 | AV52: 120.5957102 | AW52: 123.6404825 | AX52: 126.63057 | AY52: 130.0221773 | AZ52: 132.9728055 | BA52: 135.5396161 | BB52: 138.5527596 | BC52: 141.4200625 | BD52: 0
A53: % of Interest Only Mortgages | B53: 0 | C53: 0 | D53: 0 | E53: 0 | F53: 0 | G53: 0 | H53: 0 | I53: 0 | J53: 0 | K53: 0 | L53: 0 | M53: 0 | N53: 0 | O53: 0 | P53: 0 | Q53: 0 | R53: 0 | S53: 0 | T53: 0 | U53: 0 | V53: 0 | W53: 0 | X53: 0 | Y53: 0 | Z53: 0 | AA53: 0 | AB53: 0 | AC53: 0 | AD53: 0 | AE53: 0 | AF53: 0 | AG53: 0 | AH53: 0 | AI53: 0 | AJ53: 0 | AK53: 0 | AL53: 0 | AM53: 0 | AN53: 0 | AO53: 0 | AP53: 0 | AQ53: 0 | AR53: 0 | AS53: 0 | AT53: 0 | AU53: 0 | AV53: 0 | AW53: 0 | AX53: 0 | AY53: 0 | AZ53: 0 | BA53: 0 | BB53: 0 | BC53: 0 | BD53: 0
A54: % of Repayment Mortgages | B54: 1 | C54: 1 | D54: 1 | E54: 1 | F54: 1 | G54: 1 | H54: 1 | I54: 1 | J54: 1 | K54: 1 | L54: 1 | M54: 1 | N54: 1 | O54: 1 | P54: 1 | Q54: 1 | R54: 1 | S54: 1 | T54: 1 | U54: 1 | V54: 1 | W54: 1 | X54: 1 | Y54: 1 | Z54: 1 | AA54: 1 | AB54: 1 | AC54: 1 | AD54: 1 | AE54: 1 | AF54: 1 | AG54: 1 | AH54: 1 | AI54: 1 | AJ54: 1 | AK54: 1 | AL54: 1 | AM54: 1 | AN54: 1 | AO54: 1 | AP54: 1 | AQ54: 1 | AR54: 1 | AS54: 1 | AT54: 1 | AU54: 1 | AV54: 1 | AW54: 1 | AX54: 1 | AY54: 1 | AZ54: 1 | BA54: 1 | BB54: 1 | BC54: 1 | BD54: 0
A55: % of Mortgages in London | B55: 0.0392 | C55: 0.0395 | D55: 0.0403 | E55: 0.039 | F55: 0.0381 | G55: 0.0377 | H55: 0.0385 | I55: 0.0379 | J55: 0.039 | K55: 0.0399 | L55: 0.0392 | M55: 0.0374 | N55: 0.0374 | O55: 0.0367 | P55: 0.0364 | Q55: 0.0362 | R55: 0.0358 | S55: 0.0362 | T55: 0.0368 | U55: 0.0364 | V55: 0.0364 | W55: 0.0376 | X55: 0.0379 | Y55: 0.0371 | Z55: 0.037 | AA55: 0.0377 | AB55: 0.0365 | AC55: 0.0365 | AD55: 0.0364 | AE55: 0.0349 | AF55: 0.0352 | AG55: 0.0355 | AH55: 0.0352 | AI55: 0.0347 | AJ55: 0.0338 | AK55: 0.0328 | AL55: 0.0328 | AM55: 0.0317 | AN55: 0.03109730531 | AO55: 0.03132413643 | AP55: 0.03203986285 | AQ55: 0.0307006817 | AR55: 0.02997929778 | AS55: 0.02847234602 | AT55: 0.02774886585 | AU55: 0.02689763946 | AV55: 0.02670655518 | AW55: 0.02797401633 | AX55: 0.02785406226 | AY55: 0.02690067007 | AZ55: 0.0233165336 | BA55: 0.02425441633 | BB55: 0.02362710678 | BC55: 0.02412926295 | BD55: 0
A56: % of Mortgages in the South East | B56: 0.267 | C56: 0.2583 | D56: 0.2609 | E56: 0.261 | F56: 0.2609 | G56: 0.2623 | H56: 0.2602 | I56: 0.2605 | J56: 0.2602 | K56: 0.2565 | L56: 0.2556 | M56: 0.2504 | N56: 0.2485 | O56: 0.2466 | P56: 0.25 | Q56: 0.2506 | R56: 0.2512 | S56: 0.2493 | T56: 0.2501 | U56: 0.2513 | V56: 0.2505 | W56: 0.2504 | X56: 0.2501 | Y56: 0.2482 | Z56: 0.2475 | AA56: 0.2475 | AB56: 0.2471 | AC56: 0.243 | AD56: 0.2426 | AE56: 0.2428 | AF56: 0.2421 | AG56: 0.2427 | AH56: 0.2423 | AI56: 0.2391 | AJ56: 0.2397 | AK56: 0.2394 | AL56: 0.2394 | AM56: 0.2361 | AN56: 0.2332618577 | AO56: 0.2331395255 | AP56: 0.2325181267 | AQ56: 0.2348469672 | AR56: 0.2331538812 | AS56: 0.2355380139 | AT56: 0.2369958952 | AU56: 0.2360488367 | AV56: 0.234309424 | AW56: 0.2379451366 | AX56: 0.2360097276 | AY56: 0.2356520373 | AZ56: 0.2341598065 | BA56: 0.2311949592 | BB56: 0.2316298914 | BC56: 0.2324067951 | BD56: 0
A57: % of Owner Occupied Mortgages | B57: 1 | C57: 1 | D57: 1 | E57: 1 | F57: 1 | G57: 1 | H57: 1 | I57: 1 | J57: 1 | K57: 1 | L57: 1 | M57: 1 | N57: 1 | O57: 1 | P57: 1 | Q57: 1 | R57: 1 | S57: 1 | T57: 1 | U57: 1 | V57: 1 | W57: 1 | X57: 1 | Y57: 1 | Z57: 1 | AA57: 1 | AB57: 1 | AC57: 1 | AD57: 1 | AE57: 1 | AF57: 1 | AG57: 1 | AH57: 1 | AI57: 1 | AJ57: 1 | AK57: 1 | AL57: 1 | AM57: 1 | AN57: 1 | AO57: 1 | AP57: 1 | AQ57: 1 | AR57: 1 | AS57: 1 | AT57: 1 | AU57: 1 | AV57: 1 | AW57: 1 | AX57: 1 | AY57: 1 | AZ57: 1 | BA57: 1 | BB57: 1 | BC57: 1 | BD57: 0
A58: % of Loans with Payment Protection Insurance | B58: 0.6866 | C58: 0.6626 | D58: 0.6623 | E58: 0.6636 | F58: 0.6554 | G58: 0.6335 | H58: 0.6202 | I58: 0.6153 | J58: 0.6 | K58: 0.583 | L58: 0.575 | M58: 0.5574 | N58: 0.5369 | O58: 0.5223 | P58: 0.5239 | Q58: 0.5171 | R58: 0.5247 | S58: 0.5166 | T58: 0.5231 | U58: 0.5191 | V58: 0.5109 | W58: 0.5108 | X58: 0.5112 | Y58: 0.5201 | Z58: 0.521 | AA58: 0.5231 | AB58: 0.5229 | AC58: 0.5245 | AD58: 0.527 | AE58: 0.5161 | AF58: 0.5201 | AG58: 0.5254 | AH58: 0.5141 | AI58: 0.5194 | AJ58: 0.5172 | AK58: 0.5195 | AL58: 0.5239 | AM58: 0.5205 | AN58: 0.5225874545 | AO58: 0.525060026 | AP58: 0.5203909203 | AQ58: 0.5275122627 | AR58: 0.5288833465 | AS58: 0.5189334271 | AT58: 0.5192929453 | AU58: 0.5235378671 | AV58: 0.5233387173 | AW58: 0.521455224 | AX58: 0.5321421783 | AY58: 0.529778189 | AZ58: 0.5304890225 | BA58: 0.5344541817 | BB58: 0.5379827942 | BC58: 0.5384678501 | BD58: 0
A59: % of Loans > 100% LTV | B59: 0.2597 | C59: 0.2298 | D59: 0.2422 | E59: 0.2543 | F59: 0.2475 | G59: 0.2441 | H59: 0.2397 | I59: 0.2381 | J59: 0.2348 | K59: 0.243 | L59: 0.2491 | M59: 0.24 | N59: 0.221 | O59: 0.2177 | P59: 0.2148 | Q59: 0.212 | R59: 0.211 | S59: 0.2094 | T59: 0.2067 | U59: 0.2057 | V59: 0.2025 | W59: 0.2026 | X59: 0.2046 | Y59: 0.2057 | Z59: 0.2046 | AA59: 0.2048 | AB59: 0.2059 | AC59: 0.2027 | AD59: 0.2057 | AE59: 0.2031 | AF59: 0.2034 | AG59: 0.2036 | AH59: 0.2025 | AI59: 0.1983 | AJ59: 0.1975 | AK59: 0.1936 | AL59: 0.1899 | AM59: 0.1882 | AN59: 0.1857996674 | AO59: 0.1802468788 | AP59: 0.1781011983 | AQ59: 0.1748843982 | AR59: 0.1708362962 | AS59: 0.168814562 | AT59: 0.1664137228 | AU59: 0.1662778314 | AV59: 0.1602284361 | AW59: 0.1600732442 | AX59: 0.1585423595 | AY59: 0.186005067 | AZ59: 0.1867684332 | BA59: 0.181802099 | BB59: 0.1695948023 | BC59: 0.1708067895 | BD59: 0

Sheet Graphs
Q2: PARAGON SECURED FINANCE (NO.1) PLC
